bitfinex-derivatives/quotes_SOLF0:USTF0_20250613
["timestamp","ask_amount","ask_price","bid_price","bid_amount"]
[1749853441655,0.05147678,147.49,147.46,0.04774599]
[1749853442359,0.05147678,147.49,147.47,6.7775]
[1749853443149,4.39398234,147.49,147.46,0.04774599]
[1749853443562,6.7778,147.47,147.46,0.04774599]
[1749853444259,6.7774,147.48,147.46,0.04774599]
[1749853444461,4.39398234,147.49,147.46,0.04774599]
[1749853444849,6.7778,147.47,147.46,0.04774599]
[1749853445859,11.12030556,147.47,147.46,0.04774599]
[1749853446065,6.7796,147.44,147.4,169.40231415]
[1749853446257,6.7796,147.44,147.4,176.18331415]
[1749853447066,0.05133378,147.43,147.41,0.04338807]
[1749853447258,6.83133378,147.43,147.41,0.04338807]
[1749853447667,0.05133378,147.43,147.41,0.04338807]
[1749853448366,6.83113378,147.43,147.41,0.04338807]
[1749853448565,0.05133378,147.43,147.41,0.04338807]
[1749853451763,6.83123378,147.43,147.41,0.04338807]
[1749853453465,6.7801,147.42,147.41,0.04338807]
[1749853463669,4.34250556,147.42,147.34,34.46]
[1749853463874,4.34250556,147.38,147.32,4.5727]
[1749853464076,6.7831,147.36,147.32,11.3573]
[1749853464772,6.7838,147.34,147.33,0.05177438]
[1749853465174,6.82932915,147.35,147.33,0.05177438]
[1749853467471,6.7838,147.34,147.33,0.05177438]
[1749853468082,6.7838,147.34,147.28,34.46]
[1749853468083,4.34250556,147.34,147.28,34.46]
[1749853468676,6.785,147.32,147.28,41.2463]
[1749853469080,0.04742483,147.31,147.29,0.04710925]
[1749853469276,0.04742483,147.31,147.29,6.83290925]
[1749853471280,0.04742483,147.31,147.3,6.7856]
[1749853471687,0.04742483,147.31,147.29,0.04710925]
[1749853472481,0.04742483,147.31,147.29,6.83290925]
[1749853473781,6.83262483,147.31,147.29,0.04710925]
[1749853474186,0.04742483,147.31,147.29,0.04710925]
[1749853474480,0.04742483,147.31,147.29,6.83320925]
[1749853477482,4.38993039,147.31,147.29,0.04710925]
[1749853477874,6.7856,147.3,147.29,0.04710925]
[1749853479187,4.38993039,147.31,147.25,6.7877]
[1749853479486,4.34250556,147.29,147.22,39.0604]
[1749853480083,0.04910806,147.27,147.24,0.04354993]
[1749853480284,6.83620806,147.27,147.24,6.83184993]
[1749853480585,6.83620806,147.27,147.24,0.04354993]
[1749853481795,6.7875,147.26,147.24,0.04354993]
[1749853481979,4.39161362,147.27,147.24,0.04354993]
[1749853482289,6.7875,147.26,147.24,0.04354993]
[1749853482580,4.39161362,147.27,147.24,0.04354993]
[1749853483788,6.7877,147.26,147.24,0.04354993]
[1749853487793,6.7879,147.25,147.24,0.04354993]
[1749853489197,4.34250556,147.25,147.2,2.3091]
[1749853490000,4.34250556,147.25,147.2,9.0991]
[1749853490193,34.50681334,147.24,147.16,34.46]
[1749853490390,4.34250556,147.21,147.16,34.46]
[1749853490592,11.13250556,147.21,147.17,6.7912]
[1749853490987,4.34250556,147.21,147.16,34.46]
[1749853491189,6.7908,147.19,147.16,34.46]
[1749853491391,11.13330556,147.19,147.17,0.05106405]
[1749853491791,6.7912,147.18,147.17,0.05106405]
[1749853492795,11.13340556,147.19,147.17,0.05106405]
[1749853493904,6.7912,147.18,147.17,0.05106405]
[1749853494097,4.34250556,147.19,147.17,0.05106405]
[1749853494403,6.7912,147.18,147.17,0.05106405]
[1749853496800,6.7923,147.16,147.12,9.1143]
[1749853497205,11.13430556,147.17,147.13,6.7934]
[1749853497796,0.05219294,147.16,147.13,6.7934]
[1749853498103,0.05219294,147.16,147.14,6.793]
[1749853498505,0.05219294,147.16,147.12,2.3206]
[1749853498802,0.05219294,147.16,147.13,6.7931]
[1749853499396,0.05219294,147.16,147.14,6.7929]
[1749853499596,0.05219294,147.16,147.12,6.66310556]
[1749853499797,38.80250556,147.2,147.14,4.34250556]
[1749853499999,38.80250556,147.2,147.17,6.7912]
[1749853500307,45.59310556,147.2,147.14,34.48]
[1749853500612,4.34250556,147.16,147.1,34.48]
[1749853500798,4.34250556,147.16,147.12,0.04396394]
[1749853500799,6.7935,147.13,147.12,0.04396394]
[1749853501000,0.05104248,147.14,147.12,0.04396394]
[1749853501607,0.05104248,147.14,147.13,6.7935]
[1749853502006,0.05104248,147.14,147.12,0.04396394]
[1749853502307,8.7360536,147.14,147.03,38.82250556]
[1749853502506,4.34250556,147.12,147.04,8.87930556]
[1749853502711,4.34250556,147.12,147.04,4.5368]
[1749853503008,4.34250556,147.1,147.04,4.5368]
[1749853503310,4.39005664,147.08,147.03,34.48]
[1749853503901,0.04755108,147.08,147.03,34.48]
[1749853504502,6.7964,147.07,147.03,6.7978]
[1749853504810,0.04755108,147.08,147.0,41.00470556]
[1749853504996,0.04322305,147.05,147.03,6.7978]
[1749853506315,0.04322305,147.05,147.04,6.7976]
[1749853507011,0.04322305,147.05,147.02,4.34250556]
[1749853507211,0.04322305,147.05,147.0,36.6622]
[1749853507405,0.04322305,147.05,147.01,6.799]
[1749853507908,6.84062305,147.05,147.01,6.799]
[1749853508408,0.04322305,147.05,147.01,6.799]
[1749853508810,0.04322305,147.05,147.03,4.34250556]
[1749853509213,38.9721,147.12,147.03,4.34250556]
[1749853509407,43.31460556,147.12,147.05,4.34250556]
[1749853509614,38.80250556,147.12,147.05,4.34250556]
[1749853509804,6.7947,147.11,147.07,6.7959]
[1749853510013,6.7947,147.11,147.05,4.34250556]
[1749853510216,0.04527987,147.09,147.07,0.04908377]
[1749853510424,0.04527987,147.09,147.08,6.7958]
[1749853511410,0.04527987,147.09,147.07,6.84508377]
[1749853511614,0.04527987,147.09,147.07,0.04908377]
[1749853512528,0.04527987,147.09,147.08,6.7958]
[1749853514220,0.04527987,147.09,147.07,6.84518377]
[1749853514530,0.04527987,147.09,147.07,0.04908377]
[1749853514725,4.38778543,147.09,147.07,0.04908377]
[1749853515231,6.7958,147.08,147.07,0.04908377]
[1749853515425,4.38778543,147.09,147.07,0.04908377]
[1749853515823,11.18328543,147.09,147.07,0.04908377]
[1749853516431,6.7958,147.08,147.07,0.04908377]
[1749853516822,4.38778543,147.09,147.07,0.04908377]
[1749853517422,6.7958,147.08,147.07,0.04908377]
[1749853518329,0.04527987,147.09,147.07,0.04908377]
[1749853518832,0.04527987,147.09,147.08,6.7958]
[1749853519035,0.04527987,147.09,147.07,0.04908377]
[1749853520230,0.04527987,147.09,147.07,6.84498377]
[1749853521325,0.04527987,147.09,147.08,6.7958]
[1749853521921,4.34250556,147.13,147.09,6.7949]
[1749853522123,4.34250556,147.13,147.07,4.34250556]
[1749853522326,6.7937,147.13,147.07,4.34250556]
[1749853522521,6.7937,147.13,147.07,6.51920556]
[1749853522930,38.82250556,147.15,147.07,6.51920556]
[1749853523129,0.04671806,147.11,147.09,0.04775456]
[1749853525240,0.04671806,147.11,147.09,6.84305456]
[1749853525830,0.04671806,147.11,147.1,6.7949]
[1749853531138,6.62160556,147.17,147.09,38.87026012]
[1749853531433,6.7923,147.16,147.13,6.7934]
[1749853531834,4.34250556,147.17,147.11,4.34250556]
[1749853532036,0.05137752,147.15,147.13,6.7935]
[1749853532335,0.05137752,147.15,147.12,0.04510802]
[1749853532638,0.05137752,147.15,147.14,6.793]
[1749853533036,0.05137752,147.15,147.12,0.04510802]
[1749853533532,4.39388308,147.15,147.12,0.04510802]
[1749853533736,11.13600556,147.13,147.12,0.04510802]
[1749853535341,13.69622031,147.13,147.12,0.04510802]
[1749853535532,13.6962204,147.13,147.12,0.04510802]
[1749853535841,11.13600556,147.13,147.12,0.04510802]
[1749853541640,34.44,147.14,147.12,0.04510802]
[1749853541946,0.05137752,147.15,147.12,0.04510802]
[1749853542537,0.05137752,147.15,147.14,6.793]
[1749853543034,0.05137752,147.15,147.12,0.04510802]
[1749853543238,4.39388308,147.15,147.12,0.04510802]
[1749853544039,6.7933,147.14,147.12,0.04510802]
[1749853544345,4.39388308,147.15,147.12,0.04510802]
[1749853545247,6.793,147.14,147.12,0.04510802]
[1749853545446,4.39388308,147.15,147.12,0.04510802]
[1749853545840,11.13600556,147.13,147.12,0.04510802]
[1749853550739,6.7935,147.13,147.12,0.04510802]
[1749853555454,6.7953,147.09,147.05,34.44]
[1749853555654,8.68501112,147.14,147.05,34.44]
[1749853555655,4.34250556,147.11,147.05,34.44]
[1749853556253,6.7952,147.1,147.06,6.7963]
[1749853556454,0.05137927,147.09,147.07,0.04717834]
[1749853557156,6.84697927,147.09,147.07,0.04717834]
[1749853557758,6.7958,147.08,147.07,0.04717834]
[1749853559859,6.84697927,147.09,147.07,0.04717834]
[1749853562354,6.7958,147.08,147.07,0.04717834]
[1749853578676,0.05137927,147.09,147.07,0.04717834]
[1749853578967,40.73001824,147.16,147.07,4.3896839]
[1749853579168,6.7933,147.14,147.09,11.13740556]
[1749853579570,45.0725238,147.16,147.09,4.34250556]
[1749853579768,38.76250556,147.16,147.09,4.34250556]
[1749853579972,4.38996002,147.14,147.11,0.04427619]
[1749853580673,6.7937,147.13,147.11,0.04427619]
[1749853581173,6.7939,147.12,147.11,0.04427619]
[1749853582371,11.13640556,147.12,147.11,0.04427619]
[1749853585675,6.7953,147.09,147.06,41.2164]
[1749853585879,4.34250556,147.12,147.06,41.2164]
[1749853586085,4.34250556,147.12,147.07,6.7961]
[1749853586779,0.04315143,147.11,147.08,0.05180012]
[1749853587172,6.7951,147.1,147.08,0.05180012]
[1749853588983,6.7952,147.09,147.08,0.05180012]
[1749853590183,6.795,147.1,147.08,0.05180012]
[1749853591279,0.04315143,147.11,147.08,0.05180012]
[1749853591478,6.83765143,147.11,147.08,0.05180012]
[1749853592286,6.7948,147.1,147.08,0.05180012]
[1749853592780,6.83775143,147.11,147.08,0.05180012]
[1749853592984,0.04315143,147.11,147.08,0.05180012]
[1749853593280,6.7952,147.1,147.08,0.05180012]
[1749853593783,9.36168146,147.09,147.08,0.05180012]
[1749853594088,4.34250556,147.08,147.04,6.7975]
[1749853594882,0.05080254,147.07,147.05,0.04322052]
[1749853595285,6.84700254,147.07,147.05,0.04322052]
[1749853595688,0.05080254,147.07,147.05,6.84022052]
[1749853596387,0.05080254,147.07,147.05,0.04322052]
[1749853597789,0.05080254,147.07,147.05,6.84032052]
[1749853597975,0.05080254,147.07,147.05,0.04322052]
[1749853598488,0.05080254,147.07,147.06,6.7966]
[1749853603497,6.7945,147.11,147.06,11.16245124]
[1749853603707,6.7945,147.11,147.06,4.36585124]
[1749853604003,6.7945,147.11,147.07,34.4]
[1749853604405,6.7945,147.11,147.08,6.7953]
[1749853604602,6.84112436,147.11,147.08,6.84417685]
[1749853605202,0.04662436,147.11,147.09,6.7952]
[1749853606109,6.84102436,147.11,147.09,6.7952]
[1749853606299,0.04662436,147.11,147.09,6.7952]
[1749853607304,0.04662436,147.11,147.08,6.84417685]
[1749853607492,0.04662436,147.11,147.08,0.04887685]
[1749853608206,0.04662436,147.11,147.08,4.41472809]
[1749853608394,0.04662436,147.11,147.08,6.69472809]
[1749853608600,0.04662436,147.11,147.1,6.7948]
[1749853609902,34.4,147.17,147.1,4.36585124]
[1749853610098,6.7922,147.16,147.11,34.4]
[1749853610298,2.57520256,147.15,147.11,34.4]
[1749853610605,6.7922,147.16,147.13,6.7931]
[1749853610801,6.7922,147.16,147.13,6.83613829]
[1749853611004,6.83867246,147.16,147.13,6.83613829]
[1749853613618,6.7925,147.15,147.13,0.04303829]
[1749853613916,0.04647246,147.16,147.13,0.04303829]
[1749853614918,6.83867246,147.16,147.13,6.83613829]
[1749853615116,0.04647246,147.16,147.13,0.04303829]
[1749853615616,6.83857246,147.16,147.13,6.83623829]
[1749853616815,0.04647246,147.16,147.13,6.83623829]
[1749853617318,6.83857246,147.16,147.13,6.83623829]
[1749853620924,6.83857246,147.16,147.14,6.7929]
[1749853622021,0.04647246,147.16,147.14,6.7929]
[1749853623625,4.4123237,147.16,147.13,0.04303829]
[1749853624126,6.7929,147.14,147.13,0.04303829]
[1749853625423,6.7927,147.15,147.13,0.04303829]
[1749853626721,6.7929,147.14,147.13,0.04303829]
[1749853629623,34.42647246,147.16,147.13,0.04303829]
[1749853629826,0.04647246,147.16,147.13,0.04303829]
[1749853630329,0.04647246,147.16,147.13,6.83623829]
[1749853634431,6.83847246,147.16,147.13,6.83623829]
[1749853634630,0.04647246,147.16,147.13,6.83623829]
[1749853635435,6.83847246,147.16,147.13,6.83623829]
[1749853638829,6.7926,147.15,147.13,0.04303829]
[1749853639740,6.7926,147.15,147.13,6.83643829]
[1749853642437,6.7929,147.14,147.13,0.04303829]
[1749853642842,9.37611523,147.14,147.13,0.04303829]
[1749853643037,6.7929,147.14,147.13,0.04303829]
[1749853643642,9.37608104,147.14,147.13,0.04303829]
[1749853643841,6.7929,147.14,147.13,0.04303829]
[1749853645330,0.04647246,147.16,147.13,0.04303829]
[1749853646743,0.04647246,147.16,147.14,6.7926]
[1749853647447,6.83857246,147.16,147.14,6.7926]
[1749853647642,6.83857246,147.16,147.13,6.83623829]
[1749853650250,0.04647246,147.16,147.13,0.04303829]
[1749853650544,0.04647246,147.16,147.15,6.7925]
[1749853651748,12.96626948,147.21,147.16,6.7916]
[1749853651950,2.58122498,147.2,147.16,6.7916]
[1749853652151,2.58135202,147.19,147.16,6.7916]
[1749853652348,2.58135202,147.18,147.16,6.7916]
[1749853652548,6.31001824,147.2,147.16,6.7916]
[1749853652852,0.04406616,147.19,147.17,0.04313351]
[1749853653250,2.58459236,147.18,147.17,0.04313351]
[1749853653847,2.58447326,147.18,147.17,0.04313351]
[1749853654145,6.7911,147.18,147.17,0.04313351]
[1749853654347,9.3757584,147.18,147.17,0.04313351]
[1749853654548,9.37574219,147.18,147.17,0.04313351]
[1749853654751,9.37574289,147.18,147.17,0.04313351]
[1749853654943,6.7911,147.18,147.17,0.04313351]
[1749853655149,9.37573342,147.18,147.17,0.04313351]
[1749853655349,9.37574039,147.18,147.17,0.04313351]
[1749853655549,6.7911,147.18,147.17,0.04313351]
[1749853655753,9.37741515,147.18,147.17,0.04313351]
[1749853655953,6.7911,147.18,147.17,0.04313351]
[1749853656149,9.37743375,147.18,147.17,0.04313351]
[1749853656455,9.37741512,147.18,147.17,0.04313351]
[1749853656649,9.3774256,147.18,147.17,0.04313351]
[1749853656957,6.7911,147.18,147.17,0.04313351]
[1749853657449,9.3778237,147.18,147.17,0.04313351]
[1749853657848,9.37783181,147.18,147.17,0.04313351]
[1749853658258,9.37781534,147.18,147.17,0.04313351]
[1749853658454,9.37781296,147.18,147.17,0.04313351]
[1749853658961,9.37765467,147.18,147.17,0.04313351]
[1749853659251,9.37767833,147.18,147.17,0.04313351]
[1749853659458,9.37767834,147.18,147.17,0.04313351]
[1749853659956,9.37771929,147.18,147.17,0.04313351]
[1749853660250,6.7911,147.18,147.17,0.04313351]
[1749853660442,9.37610471,147.18,147.17,0.04313351]
[1749853660848,15.68594564,147.18,147.17,0.04313351]
[1749853661160,15.68592226,147.18,147.17,0.04313351]
[1749853661359,15.68587174,147.18,147.17,0.04313351]
[1749853661850,13.10111824,147.18,147.17,0.04313351]
[1749853662252,15.68478785,147.18,147.17,0.04313351]
[1749853662653,13.10111824,147.18,147.17,0.04313351]
[1749853663052,15.6847869,147.18,147.17,0.04313351]
[1749853663554,15.68495207,147.18,147.17,0.04313351]
[1749853663856,9.37493549,147.18,147.17,0.04313351]
[1749853664057,6.7911,147.18,147.17,0.04313351]
[1749853664258,9.37493549,147.18,147.17,0.04313351]
[1749853664452,9.3743967,147.18,147.17,0.04313351]
[1749853664855,9.37438761,147.18,147.17,0.04313351]
[1749853665056,9.37478706,147.18,147.17,0.04313351]
[1749853665258,15.68528867,147.18,147.17,0.04313351]
[1749853665457,15.68564705,147.18,147.17,0.04313351]
[1749853665659,13.10111824,147.18,147.17,0.04313351]
[1749853666060,15.68424588,147.18,147.17,0.04313351]
[1749853666257,15.68424338,147.18,147.17,0.04313351]
[1749853666459,13.10111824,147.18,147.17,0.04313351]
[1749853666664,15.68425211,147.18,147.17,0.04313351]
[1749853666855,15.68425086,147.18,147.17,0.04313351]
[1749853667661,13.10111824,147.18,147.17,0.04313351]
[1749853667858,15.68425371,147.18,147.17,0.04313351]
[1749853668057,15.68425496,147.18,147.17,0.04313351]
[1749853668258,15.68425371,147.18,147.17,0.04313351]
[1749853668453,13.10111824,147.18,147.17,0.04313351]
[1749853668758,15.68425869,147.18,147.17,0.04313351]
[1749853668957,6.7911,147.18,147.17,0.04313351]
[1749853669157,9.37413987,147.18,147.17,0.04313351]
[1749853669365,13.10111824,147.18,147.17,0.04313351]
[1749853669660,15.72861523,147.18,147.17,0.04313351]
[1749853669862,13.14548189,147.18,147.17,0.04313351]
[1749853670057,15.72862431,147.18,147.17,0.04313351]
[1749853670259,6.793,147.14,147.12,34.34]
[1749853671261,6.793,147.14,147.12,34.38357309]
[1749853671464,6.8381698,147.14,147.12,34.38357309]
[1749853675666,6.8381698,147.14,147.12,41.17737309]
[1749853676967,6.7934,147.13,147.12,0.04357309]
[1749853677566,9.37565244,147.13,147.12,0.04357309]
[1749853677767,6.7934,147.13,147.12,0.04357309]
[1749853677963,14.07883829,147.13,147.12,0.04357309]
[1749853678364,9.37603139,147.13,147.12,0.04357309]
[1749853678665,11.49646977,147.13,147.12,0.04357309]
[1749853678860,14.07911143,147.13,147.12,0.04357309]
[1749853679059,14.07911383,147.13,147.12,0.04357309]
[1749853679258,11.4964626,147.13,147.12,0.04357309]
[1749853679459,9.37605016,147.13,147.12,0.04357309]
[1749853679664,11.49641911,147.13,147.12,0.04357309]
[1749853679967,11.49649329,147.13,147.12,0.04357309]
[1749853680162,14.07424786,147.13,147.12,0.04357309]
[1749853680363,6.7934,147.13,147.12,0.04357309]
[1749853680664,14.07424639,147.13,147.12,0.04357309]
[1749853680865,14.07428456,147.13,147.12,0.04357309]
[1749853681054,14.07430056,147.13,147.12,0.04357309]
[1749853681459,6.7934,147.13,147.12,0.04357309]
[1749853681659,9.37120489,147.13,147.12,0.04357309]
[1749853681859,11.49649567,147.13,147.12,0.04357309]
[1749853682064,14.0742435,147.13,147.12,0.04357309]
[1749853682266,14.07423154,147.13,147.12,0.04357309]
[1749853682468,9.37114783,147.13,147.12,0.04357309]
[1749853682779,14.07386169,147.13,147.12,0.04357309]
[1749853682968,14.0738796,147.13,147.12,0.04357309]
[1749853683167,11.49624186,147.13,147.12,0.04357309]
[1749853683361,9.37106789,147.13,147.12,0.04357309]
[1749853683561,11.49623994,147.13,147.12,0.04357309]
[1749853683769,9.3709419,147.13,147.12,0.04357309]
[1749853683971,11.49598691,147.13,147.12,0.04357309]
[1749853684169,6.7934,147.13,147.12,0.04357309]
[1749853684366,14.07353193,147.13,147.12,0.04357309]
[1749853684564,11.49597665,147.13,147.12,0.04357309]
[1749853684867,14.07349261,147.13,147.12,0.04357309]
[1749853685067,6.7951,147.1,147.06,41.0965]
[1749853685770,6.35438189,147.13,147.06,41.0965]
[1749853685966,0.04548732,147.11,147.08,0.04691366]
[1749853686167,2.57556694,147.1,147.08,0.04691366]
[1749853686375,4.68657007,147.09,147.08,0.04691366]
[1749853686577,4.68649608,147.09,147.08,0.04691366]
[1749853686972,6.7952,147.1,147.08,0.04691366]
[1749853688977,6.7952,147.09,147.08,0.04691366]
[1749853689677,11.47903579,147.09,147.08,0.04691366]
[1749853689868,11.47903913,147.09,147.08,0.04691366]
[1749853690378,6.7952,147.09,147.08,0.04691366]
[1749853690674,11.47902998,147.09,147.08,0.04691366]
[1749853690874,11.47903552,147.09,147.08,0.04691366]
[1749853691071,14.04914416,147.09,147.08,0.04691366]
[1749853691269,14.04915282,147.09,147.08,0.04691366]
[1749853691469,14.04915029,147.09,147.08,0.04691366]
[1749853691670,6.7952,147.09,147.08,0.04691366]
[1749853692071,11.4788245,147.09,147.08,0.04691366]
[1749853692579,6.7952,147.09,147.08,0.04691366]
[1749853692877,6.795,147.1,147.08,0.04691366]
[1749853693074,0.04548732,147.11,147.08,0.04691366]
[1749853693380,0.04548732,147.11,147.09,34.28]
[1749853693769,0.04548732,147.11,147.1,6.7948]
[1749853695980,0.04548732,147.11,147.09,34.28]
[1749853696379,0.04548732,147.11,147.09,41.0748]
[1749853696772,0.04548732,147.11,147.09,34.28]
[1749853696973,0.04548732,147.11,147.1,6.7948]
[1749853697876,0.04548732,147.11,147.09,34.28]
[1749853698182,0.04548732,147.11,147.08,0.04691366]
[1749853698377,6.83998732,147.11,147.08,0.04691366]
[1749853698577,0.04548732,147.11,147.08,0.04691366]
[1749853699781,6.7949,147.1,147.08,0.04691366]
[1749853701292,6.7952,147.09,147.08,0.04691366]
[1749853715803,6.7949,147.1,147.08,0.04691366]
[1749853716797,6.7949,147.1,147.08,6.84251366]
[1749853717796,0.04548732,147.11,147.09,6.7951]
[1749853717991,0.04548732,147.11,147.08,0.04691366]
[1749853718498,0.04548732,147.11,147.09,6.7952]
[1749853719402,0.04548732,147.11,147.1,6.7947]
[1749853719999,0.04548732,147.11,147.09,6.795]
[1749853721502,0.04548732,147.11,147.1,6.7947]
[1749853722694,0.04548732,147.11,147.09,6.7949]
[1749853723004,0.04548732,147.11,147.08,0.04691366]
[1749853723204,4.57284182,147.1,147.08,0.04691366]
[1749853723404,0.04548732,147.11,147.08,0.04691366]
[1749853723706,6.83998732,147.11,147.08,6.84221366]
[1749853725707,6.83998732,147.11,147.09,6.795]
[1749853728704,6.83998732,147.11,147.08,6.84231366]
[1749853729411,6.7947,147.1,147.08,0.04691366]
[1749853730912,6.83988732,147.11,147.08,6.84241366]
[1749853735717,6.7948,147.1,147.08,0.04691366]
[1749853741824,6.84008732,147.11,147.08,6.84251366]
[1749853742308,6.7948,147.1,147.08,0.04691366]
[1749853743923,6.7952,147.09,147.08,0.04691366]
[1749853744127,0.04548732,147.11,147.08,0.04691366]
[1749853744423,6.84008732,147.11,147.08,0.04691366]
[1749853745017,6.84008732,147.11,147.08,6.84251366]
[1749853747432,0.04548732,147.11,147.1,6.7948]
[1749853754331,6.34387321,147.17,147.1,34.2]
[1749853754636,6.7915,147.17,147.1,34.2]
[1749853755332,0.04895686,147.15,147.12,0.04674763]
[1749853755933,0.04895686,147.15,147.14,6.7929]
[1749853760525,0.04895686,147.15,147.13,6.7932]
[1749853760940,0.04895686,147.15,147.12,0.04674763]
[1749853761838,0.04895686,147.15,147.14,6.7929]
[1749853762134,0.04895686,147.15,147.12,0.04674763]
[1749853762535,0.04895686,147.15,147.12,6.84044763]
[1749853762736,0.04895686,147.15,147.12,0.04674763]
[1749853763532,0.04895686,147.15,147.13,6.7931]
[1749853765533,6.84175686,147.15,147.12,0.04674763]
[1749853766132,6.793,147.14,147.12,0.04674763]
[1749853767834,6.7933,147.13,147.12,0.04674763]
[1749853771245,6.793,147.14,147.12,0.04674763]
[1749853772344,0.04895686,147.15,147.12,0.04674763]
[1749853772733,2.58061792,147.14,147.12,0.04674763]
[1749853772936,0.04895686,147.15,147.12,0.04674763]
[1749853773136,2.58022098,147.14,147.12,0.04674763]
[1749853773337,6.7929,147.14,147.12,0.04674763]
[1749853775042,6.84155686,147.15,147.12,0.04674763]
[1749853775245,2.57554639,147.14,147.12,0.04674763]
[1749853775444,6.84155686,147.15,147.12,0.04674763]
[1749853775744,2.57397418,147.14,147.12,0.04674763]
[1749853775944,6.84155686,147.15,147.12,0.04674763]
[1749853776251,2.57397418,147.14,147.12,0.04674763]
[1749853776550,6.84155686,147.15,147.12,0.04674763]
[1749853776746,2.57400344,147.14,147.12,0.04674763]
[1749853776945,6.84155686,147.15,147.12,0.04674763]
[1749853777243,2.57396579,147.14,147.12,0.04674763]
[1749853777435,2.57905854,147.13,147.12,0.04674763]
[1749853777643,6.84155686,147.15,147.12,0.04674763]
[1749853778150,2.57906855,147.14,147.12,0.04674763]
[1749853778359,2.57906855,147.13,147.12,0.04674763]
[1749853778546,2.57911701,147.13,147.12,0.04674763]
[1749853779254,2.57911682,147.13,147.12,0.04674763]
[1749853779553,2.57913203,147.14,147.12,0.04674763]
[1749853779751,6.84155686,147.15,147.12,0.04674763]
[1749853780149,0.04895686,147.15,147.12,0.04674763]
[1749853780651,0.04895686,147.15,147.14,6.7929]
[1749853781646,0.04895686,147.15,147.14,40.9729]
[1749853782642,6.7904,147.2,147.18,6.7909]
[1749853782848,2.58125499,147.19,147.18,6.7909]
[1749853783042,2.58125499,147.19,147.14,34.18]
[1749853783246,6.7904,147.2,147.17,6.7912]
[1749853783753,2.58152221,147.19,147.17,6.83940862]
[1749853783949,6.83684841,147.2,147.17,6.83940862]
[1749853784151,2.58153505,147.19,147.17,6.83940862]
[1749853784348,6.83684841,147.2,147.17,6.83940862]
[1749853784554,2.58153505,147.19,147.17,6.83940862]
[1749853784855,6.83684841,147.2,147.17,6.83940862]
[1749853785053,2.58151984,147.19,147.17,6.83940862]
[1749853785253,6.83684841,147.2,147.17,6.83940862]
[1749853785451,2.58151984,147.19,147.17,6.83940862]
[1749853785644,6.83684841,147.2,147.18,6.791]
[1749853786154,0.04644841,147.2,147.18,6.791]
[1749853788556,6.83654841,147.2,147.17,6.83950862]
[1749853791359,6.83654841,147.2,147.17,0.04820862]
[1749853793459,6.7906,147.19,147.17,0.04820862]
[1749853794454,6.791,147.18,147.17,0.04820862]
[1749853797360,0.04644841,147.2,147.17,0.04820862]
[1749853798065,6.83694841,147.2,147.17,0.04820862]
[1749853798659,0.04644841,147.2,147.17,0.04820862]
[1749853799364,6.7908,147.19,147.17,0.04820862]
[1749853800867,6.83684841,147.2,147.17,6.83970862]
[1749853801064,0.04644841,147.2,147.17,0.04820862]
[1749853802265,0.04644841,147.2,147.19,6.7906]
[1749853802465,0.04644841,147.2,147.17,0.04820862]
[1749853804264,6.7911,147.18,147.17,0.04820862]
[1749853807565,6.7927,147.15,147.11,34.14]
[1749853807768,6.7927,147.15,147.11,40.9341]
[1749853808561,0.04648713,147.14,147.12,0.05197753]
[1749853810575,0.04648713,147.14,147.12,6.84577753]
[1749853813561,0.04648713,147.14,147.12,0.05197753]
[1749853814077,6.83968713,147.14,147.12,0.05197753]
[1749853815171,0.04648713,147.14,147.12,0.05197753]
[1749853815770,6.33141656,147.21,147.12,0.05197753]
[1749853816069,6.7902,147.2,147.11,34.14]
[1749853816276,6.7902,147.2,147.12,2.1739]
[1749853816971,0.04669323,147.17,147.15,0.04751337]
[1749853817177,0.04669323,147.17,147.15,34.14751337]
[1749853817375,0.04669323,147.17,147.16,6.7915]
[1749853825281,127.23387723,147.25,147.15,34.14751337]
[1749853825473,127.23387723,147.25,147.16,4.4168]
[1749853825674,127.23387723,147.25,147.19,6.7904]
[1749853825876,6.33141656,147.23,147.15,34.1]
[1749853826171,6.7906,147.19,147.18,0.04355577]
[1749853826778,6.83839417,147.2,147.18,0.04355577]
[1749853827476,6.7906,147.19,147.18,0.04355577]
[1749853835389,6.83829417,147.2,147.18,0.04355577]
[1749853835791,0.04799417,147.2,147.18,0.04355577]
[1749853836693,6.7906,147.19,147.18,0.04355577]
[1749853849107,0.04799417,147.2,147.18,0.04355577]
[1749853849694,0.04799417,147.2,147.18,6.83435577]
[1749853850803,6.83819417,147.2,147.18,0.04355577]
[1749853852910,0.04799417,147.2,147.18,6.83465577]
[1749853854309,6.83819417,147.2,147.18,0.04355577]
[1749853855212,0.04799417,147.2,147.18,6.83455577]
[1749853860211,0.04799417,147.2,147.19,6.7906]